Cogmind - Beta 15 @@@ ROGUE MODE // 2025.05.25 @ 19:03:59 Player: DGSTER Result: Destroyed by H-61 Shepherd with Heavy Assault Cannon Performance ------------- Evolutions (2) 1000 Regions Visited (3) 600 Robots Destroyed (65) 325 Value Destroyed (1874) 1874 Prototype IDs (7) 140 Alien Tech Used (0) 0 Bonus (0) 0 TOTAL SCORE: 3939 Bonus ------- None Cogmind --------- Core Integrity 0/550 Matter 112/300 Energy 98/100 System Corruption 0% Temperature Cool (0) Movement Core (50) Location -8/Materials Parts ------- > --- POWER (1) -------- (None) > --- PROPULSION (3) --- (None) > --- UTILITY (5) ------ Advanced Visual Processing Unit > --- WEAPON (2) ------- (None) > --- INVENTORY (5) ---- Light Deuterium Engine Improved Sensor Array Gauss Rifle Improved Light Cannon Rocket Launcher Peak State ------------ > --- POWER ------------ Improved Ion Engine > --- PROPULSION ------- Improved Treads Improved Treads Improved Treads > --- UTILITY ---------- Large Storage Unit Advanced Visual Processing Unit Improved Sensor Array Light Armor Plating Improved Light Armor Plating > --- WEAPON ----------- Improved Assault Rifle Improved Light Cannon > --- INVENTORY -------- Improved Ion Engine Light Deuterium Engine Improved Treads Improved Treads Improved Heat Sink Large Storage Unit Improved Sensor Array Light Armor Plating Gauss Rifle Improved Light Cannon Rocket Launcher Rocket Launcher Rocket Launcher [Rating: 26] Favorites ----------- Power Improved Ion Engine Engine Improved Ion Engine Propulsion Light Treads Treads Light Treads Leg Aluminum Leg Utility Light Armor Plating Device Improved Sensor Array Storage Large Storage Unit Processor Advanced Visual Processing Unit Protection Light Armor Plating Weapon Improved Light Cannon Energy Gun Small Laser Ballistic Gun Light Assault Rifle Ballistic Cannon Improved Light Cannon Launcher Rocket Launcher Build | -11 -10 -9 -8 ------- Run | Yrd Mat Mat Mat Slots Evolved 4 | . . 2 2 Power . | . . . . Propulsion 1 | . . 1 . Utility 3 | . . 1 2 Weapon . | . . . . Parts Attached 42 | 7 9 10 16 Power 6 | 1 3 . 2 Engine 6 | 1 3 . 2 Core . | . . . . Reactor . | . . . . Propulsion 13 | 2 . 8 3 Treads 12 | 2 . 7 3 Leg 1 | . . 1 . Wheel . | . . . . Hover . | . . . . Flight . | . . . . Utility 13 | 1 4 2 6 Device 1 | . . . 1 Storage 3 | 1 2 . . Processor 1 | . . . 1 Hackware . | . . . . Protection 8 | . 2 2 4 Artifact . | . . . . Weapon 10 | 3 2 . 5 Energy Gun 1 | 1 . . . Energy Cannon . | . . . . Ballistic Gun 4 | 2 . . 2 Ballistic Cannon 4 | . 2 . 2 Launcher 1 | . . . 1 Special Weapon . | . . . . Impact Weapon . | . . . . Slashing Weapon . | . . . . Piercing Weapon . | . . . . Special Melee Weapon . | . . . . Unidentified Prototypes . | . . . . Parts Lost 19 | . 2 . 17 Power 2 | . 1 . 1 Propulsion 6 | . . . 6 Utility 5 | . . . 5 Weapon 6 | . 1 . 5 Highest Loss Streak 13 | . 1 . 13 To Critical Strikes . | . . . . Average Backups 12 | 1 9 14 13 Power 2 | . 2 3 2 Propulsion 1 | . 2 1 1 Utility 3 | . 4 3 3 Weapon 4 | . . 6 6 Tool/Special . | . . . . Unused Backups 15 | . 2 4 9 Power 4 | . 2 . 2 Propulsion 4 | . . 3 1 Utility 4 | . . 1 3 Weapon 3 | . . . 3 Tool/Special . | . . . . Average Slot Usage (%) 93 | . 96 97 86 Engine 11 | . 13 11 8 Treads 28 | . 28 30 25 Device 2 | . . . 7 Storage 11 | . 13 11 8 Processor 1 | . . . 3 Protection 15 | . 12 19 15 Ballistic Gun 8 | . 22 . 1 Ballistic Cannon 13 | . 3 22 14 Peak Build Rating 26 | 6 12 18 26 Average Rating 14 | 4 7 15 20 On Entrance 9 | . 6 12 18 Naked Turns . | . . . . Heaviest Build 85 | 10 85 41 42 Greatest Support 69 | 40 40 69 69 Greatest Overweight (x) 2 | 2 2 . . Average Overweight (x) . | . . . . Largest Inventory Capacity 25 | 8 25 15 15 Average Capacity 14 | 7 13 15 14 Most Carried 15 | 3 15 15 15 Average Carried 12 | 1 9 14 13 Final Capacity 15 | 8 15 15 5 Final Carried 15 | 3 15 15 5 Class Distribution -------------------- 100% | Mutant Dominant Class ---------------- Mutant | -10/Materials Mutant | -9/Materials Mutant | -8/Materials Resources | -11 -10 -9 -8 ----------- Run | Yrd Mat Mat Mat Matter Collected 1325 | 187 267 471 400 Remotely . | . . . . Salvage Created 1818 | . 504 727 587 Parts 125 | . 29 48 48 Haulers Intercepted 5 | . 1 2 2 Recyclers Shooed 3 | . 1 2 . Parts Field Recycled . | . . . . Retrieved Matter . | . . . . Parts Self-Destructed . | . . . . Prevented . | . . . . Kills | -11 -10 -9 -8 ------- Run | Yrd Mat Mat Mat Combat Hostiles Destroyed 52 | . 12 20 20 Guns 14 | . 12 . 2 Cannons 34 | . . 20 14 AOE 4 | . . . 4 Classes Destroyed 11 | . 5 2 4 Worker 1 | . . . 1 Tunneler 1 | . . . 1 Hauler 5 | . 1 2 2 Recycler 2 | . . 1 1 Mechanic 1 | . . . 1 Operator 1 | . 1 . . Watcher 2 | . 1 . 1 Swarmer 15 | . 3 5 7 Grunt 23 | . 9 7 7 Sentry 13 | . . 8 5 Hunter 1 | . . . 1 Best Kill Streak 9 | . 3 3 9 Combat Bots Only 7 | . 3 3 7 Max Kills in Single Turn 2 | . 1 1 2 Gunslinging . | . . . . Exploded 2 | . . . 2 Melee . | . . . . Uniques/NPCs Destroyed . | . . . . Combat | -11 -10 -9 -8 -------- Run | Yrd Mat Mat Mat Hostile Shots Fired 420 | . 70 76 274 Missed 127 | . 22 27 78 Hits 293 | . 48 49 196 Projectile 293 | . 48 49 196 Critical Strikes 9 | . . 1 8 Damage Taken 4017 | . 531 607 2879 Core 684 | . 76 35 573 Absorbed by Shields . | . . . . Core Remaining (%) 86 | 100 69 91 . Volleys Fired 161 | . 50 53 58 Largest 2 | . 2 2 2 Hottest 66 | . 40 66 66 Shots Fired 314 | . 98 106 110 Gun 108 | . 98 . 10 Cannon 201 | . . 106 95 Launcher 5 | . . . 5 Special . | . . . . Kinetic 309 | . 98 106 105 Thermal . | . . . . Explosive 5 | . . . 5 Electromagnetic . | . . . . Robot Hit Streak 11 | . 11 11 10 Robot Miss Streak 4 | . 2 4 3 Penetration Max 1 | . . . 1 Secondary Targets . | . . . . Shots Hit Robots 196 | . 70 59 67 Core Hits 104 | . 34 29 41 Critical Kills . | . . . . Critical Parts Destroyed . | . . . . Critical Strikes 8 | . . 4 4 Blast 8 | . . 4 4 Melee Attacks . | . . . . Impact . | . . . . Slashing . | . . . . Piercing . | . . . . Sneak Attacks . | . . . . Combat Hostiles . | . . . . Follow-up Attacks . | . . . . Damage Inflicted 3751 | . 624 1289 1838 Guns 760 | . 602 . 158 Cannons 2448 | . . 1258 1190 Explosions 478 | . . . 478 Melee . | . . . . Ramming 65 | . 22 31 12 Kinetic 3208 | . 602 1258 1348 Thermal . | . . . . Explosive 478 | . . . 478 Electromagnetic . | . . . . Impact . | . . . . Slashing . | . . . . Piercing . | . . . . Highest Corruption . | . . . . Average Corruption . | . . . . Corruption Purged . | . . . . Corruption Blocked . | . . . . Overload Shots . | . . . . Overflow Damage 17 | . 2 4 11 Projectiles 4 | . . 4 . Explosions 11 | . . . 11 Melee 2 | . 2 . . Knockbacks 16 | . . 9 7 Impact . | . . . . Kinetic 15 | . . 9 6 Secondary 1 | . . . 1 Self-Inflicted Damage 69 | . . . 69 Shots 3 | . . . 3 Rammed 9 | . 5 3 1 Targets Rammed 11 | . 5 3 3 Kicked . | . . . . Crushed 2 | . . . 2 Highest Temperature 180 | . 31 180 117 Average Temperature 33 | . 10 39 39 Received Heat Transfer 1662 | . 234 222 1206 Siege Activations . | . . . . Martial Activations . | . . . . Shielding Activations . | . . . . Robots Disrupted . | . . . . Combat Hostiles . | . . . . Robots Corrupted 1 | . 1 . . Combat Hostiles . | . . . . Parts Fried 2 | . 2 . . Impact Corruptions 1 | . 1 . . Robots Melted . | . . . . Combat Hostiles . | . . . . Parts Melted . | . . . . Heat Transferred . | . . . . Parts Sabotaged . | . . . . Parts Stolen . | . . . . Parts Stripped . | . . . . Power Chain Reactions . | . . . . Alert | -11 -10 -9 -8 ------- Run | Yrd Mat Mat Mat Maximum Alert Level 2 | . . 1 2 Low Security (%) 81 | 100 100 81 56 Level 1 18 | . . 18 42 Level 2 . | . . . . Level 3 . | . . . . Level 4 . | . . . . Level 5 . | . . . . High Security . | . . . . Max Security . | . . . . Peak Influence 411 | . 80 342 411 Initial 131 | . . . 131 Average 106 | . 33 110 196 Influence Increases 1796 | . 348 648 800 Destroy 0b10 Robot/C 1040 | . 240 400 400 Destroy 0b10 Robot/NC 65 | . 15 15 35 Destroy Leader 304 | . 64 134 106 Successful Hack 28 | . 14 10 4 Disable Machine 60 | . . 15 45 Destroy Structure 44 | . . 14 30 Lose Combat Pursuer 255 | . 15 60 180 Influence Decreases 1385 | . 348 335 702 Entered New Map 182 | . . . 182 Time Decay 1013 | . 328 335 350 Lost Part 190 | . 20 . 170 Squads Dispatched 8 | . 3 2 3 Investigation 4 | . 2 1 1 Extermination . | . . . . Reinforcement 3 | . 1 1 1 Assault . | . . . . Garrison 1 | . . . 1 Intercept . | . . . . Searches Triggered . | . . . . Construction Impeded . | . . . . Haulers Reinforced . | . . . . Active Scanning Responses . | . . . . Cargo Convoy Interrupts . | . . . . Stealth | -11 -10 -9 -8 --------- Run | Yrd Mat Mat Mat Distress Signals 4 | . 1 1 2 Communications Jammed . | . . . . Distress Signals . | . . . . Times Spotted 102 | . 22 34 46 Peak Tracking Total 12 | . 4 5 12 Tactical Retreats 10 | . 1 4 5 Traps | -11 -10 -9 -8 ------- Run | Yrd Mat Mat Mat Traps Triggered 2 | . 1 . 1 Indirectly . | . . . . Trap Hack Attempts . | . . . . Triggered . | . . . . Disarmed . | . . . . Reprogrammed . | . . . . Reused . | . . . . Traps Extracted . | . . . . Installed . | . . . . Triggered . | . . . . Machines | -11 -10 -9 -8 ---------- Run | Yrd Mat Mat Mat Machines Disabled 4 | . . 1 3 Max in Single Turn 2 | . . 1 2 Machines Repaired . | . . . . Machines Dismantled . | . . . . Machines Sabotaged . | . . . . Overloaded Fab Kills . | . . . . Hacking | -11 -10 -9 -8 --------- Run | Yrd Mat Mat Mat Machines Accessed 13 | . 2 8 3 Terminals 12 | . 2 8 2 Fabricators . | . . . . Repair Stations . | . . . . Recycling Units . | . . . . Scanalyzers 1 | . . . 1 Garrison Access . | . . . . Total Hacks 30 | . 4 20 6 Successful 15 | . 1 11 3 Failed 15 | . 3 9 3 Catastrophic 1 | . . 1 . Database Lockouts . | . . . . Manual . | . . . . Terminals 28 | . 4 20 4 Fabricators . | . . . . Repair Stations . | . . . . Recycling Units . | . . . . Scanalyzers 2 | . . . 2 Garrison Access . | . . . . Terminal Hacks 14 | . 1 11 2 Record 1 | . . 1 . Robot Analysis 1 | . . 1 . Prototype ID Bank 4 | . 1 3 . Emergency Access Points 1 | . . . 1 Alert Level 2 | . . 1 1 Locate Traps 2 | . . 2 . Investigation Status 1 | . . 1 . Recall Investigation 1 | . . 1 . Hauler Manifests 1 | . . 1 . Fabricator Hacks . | . . . . Repair Station Hacks . | . . . . Recycling Unit Hacks . | . . . . Scanalyzer 1 | . . . 1 Insert Component 1 | . . . 1 Garrison Access Hacks . | . . . . Unauthorized Hacks . | . . . . Terminals . | . . . . Fabricators . | . . . . Repair Stations . | . . . . Recycling Units . | . . . . Scanalyzers . | . . . . Garrison Access . | . . . . Data Cores Recovered . | . . . . Used . | . . . . Hacking Detections 12 | . 2 8 2 Full Trace Events 1 | . . 1 . Feedback Events . | . . . . Feedback Blocked . | . . . . Robot Schematics Acquired . | . . . . Robots Built . | . . . . Authchips . | . . . . Time . | . . . . Total Robot Build Rating . | . . . . Part Schematics Acquired . | . . . . Parts Built . | . . . . Authchips . | . . . . Time . | . . . . Total Part Build Rating . | . . . . Parts Repaired . | . . . . Time . | . . . . Parts Recycled . | . . . . Recycled Matter . | . . . . Retrieved Matter . | . . . . Retrieved Components . | . . . . Parts Scanalyzed . | . . . . Part Schematics Acquired . | . . . . Parts Damaged . | . . . . Bothacking | -11 -10 -9 -8 ------------ Run | Yrd Mat Mat Mat Used RIF Installer . | . . . . Robots Hacked . | . . . . Non-combat . | . . . . Combat . | . . . . Robot Hacks Applied . | . . . . Relay Couplers Released . | . . . . Fabnet Peak Effective % . | . . . . Robots Rewired . | . . . . Allies Hacked . | . . . . Hacks Repelled . | . . . . Allies | -11 -10 -9 -8 -------- Run | Yrd Mat Mat Mat Total Allies . | . . . . Largest Group . | . . . . Highest-Rated Group . | . . . . Highest-Rated Ally . | . . . . Total Orders . | . . . . Ally Attacks . | . . . . Total Damage . | . . . . Kills . | . . . . Allies Corrupted . | . . . . Allies Melted . | . . . . Intel | -11 -10 -9 -8 ------- Run | Yrd Mat Mat Mat Active Infowar (turns) 749 | . . . 749 Optics 323 | . . . 323 Sensors 676 | . . . 676 Robot Analysis Total 1 | . . 1 . Derelict Logs Recovered . | . . . . Drone Launches . | . . . . Drone Recoveries . | . . . . Exploration | -11 -10 -9 -8 ------------- Run | Yrd Mat Mat Mat Turns Passed 2755 | 73 902 994 786 Spaces Moved 1353 | 42 444 466 401 Core 84 | 13 . . 71 Treads 1269 | 29 444 466 330 Legs . | . . . . Wheels . | . . . . Hover . | . . . . Flight . | . . . . Fastest Speed 50 | 50 160 160 50 Average Speed 153 | 143 160 160 140 Slowest Speed 320 | 160 320 160 160 Overloaded Moves . | . . . . Propulsion Burnouts . | . . . . Robots Hopped . | . . . . Potential Cave-ins . | . . . . Cave-ins Triggered . | . . . . Exploration Rate (%) 47 | 3 62 65 60 Regions Visited 3 Branch Regions . Pre-discovered Areas . | . . . . Known Exits Taken . | . . . . Unknown Exits Taken 3 | 1 1 1 . Scrap Searched . | . . . . Spaces Dug 1 | . . 1 . Terrain Destroyed 34 | . . 6 28 Melee . | . . . . Projectile 14 | . . 6 8 AOE 20 | . . . 20 Terrain Rammed . | . . . . Walls Destroyed . | . . . . Machines Disabled . | . . . . Actions | -11 -10 -9 -8 --------- Run | Yrd Mat Mat Mat Total 1735 | 51 553 614 517 Wait 106 | . 24 61 21 Move 1350 | 41 443 465 401 Hop . | . . . . Pick Up 32 | 3 15 8 6 Fast Attach 14 | 6 4 1 3 Attach 14 | . 1 1 12 Detach 2 | . . . 2 Swap 16 | 1 5 8 2 Drop 29 | . 6 14 9 Fire 161 | . 50 53 58 Melee . | . . . . Ram . | . . . . Kick . | . . . . Crush 11 | . 5 3 3 Escape Stasis . | . . . . Rewire . | . . . . Trap . | . . . . Miscellaneous . | . . . . Route ------- -11/Scrapyard -10/Materials (discovered 3 exits: *Mat / [*Min x2]) -9/Materials (discovered 2 exits: *Mat / [*Min]) -8/Materials (discovered 2 exits: [*Fac] / [*Sto]) History --------- Turn | Location | Event 18 | -11/Scrapyard | Discovered new exit (range 14) 74 | -11/Scrapyard | Entered Materials 311 | -10/Materials | Build established: Mutant 427 | -10/Materials | Discovered new exit (range 15) 621 | -10/Materials | Discovered new exit (range 13) 801 | -10/Materials | Discovered new exit (range 8) 976 | -10/Materials | Entered another Materials area 976 | -9/Materials | Evolved 2 slots: Propulsion x1, Utility x1 1437 | -9/Materials | Discovered new exit (range 14) 1952 | -9/Materials | Discovered new exit (range 4) 1970 | -9/Materials | Entered another Materials area 1970 | -8/Materials | Evolved 2 slots: Utility x2 2185 | -8/Materials | Discovered new exit (range 14) 2703 | -8/Materials | Core integrity fell below 50% 2705 | -8/Materials | Garrison activated, responded to threat 2723 | -8/Materials | Core integrity fell below 20% 2732 | -8/Materials | Destroyed 7 combat bots 2744 | -8/Materials | Lost 13 parts (1p5n4u3w) 2749 | -8/Materials | Discovered new exit (range 15) 2756 | -8/Materials | Destroyed by H-61 Shepherd with Heavy Assault Cannon Last Messages --------------- 02711_ Imp. Treads destroyed. 02711_ Critical hit (Burn: +37). 02713_ Imp. Treads destroyed. 02714_ K-01 Serf collects debris. 02715_ Slug penetrates G-47 Trooper. 02715_ K-01 Serf collects debris. 02718_ Dropped Lrg. Storage Unit. 02718_ Dropped Imp. Heat Sink. 02720_ K-01 Serf collects debris. 02721_ Dropped Imp. Ion Engine. 02723_ The unstable cave ceiling collapses. 02723_ U-05 Engineer lays Concrete. 02724_ K-01 Serf collects debris. 02724_ U-05 Engineer destroyed. 02724_ U-05 Engineer lays Concrete. 02725_ U-05 Engineer builds a Wall. 02726_ K-01 Serf collects debris. 02749_ EXIT=FOUND 02754_ K-01 Serf cleans the Terminal. 02754_ Slug penetrates Wall. Map ----- +----------------------------------------------------+ | | | | | | | | | | | | | | | | | | | | | | | | | | | | | | | | | | | | | | | ?????????????????????????????????????????????? | | ?????????????????????????????????????????????? | | ?????????????????????????????????????????????? | | ??????????????????#########???????#######????? | | ??????????????????# % #???????# ###### | | ??????????????????#